fUSD/lending_fUSD_20250213
["ID","MTS","AMOUNT","RATE_DAILY","PERIOD"]
[353011041,1739485916327,-1078.61,0.0001452,2]
[353011042,1739485916337,-869.45,0.0001452,2]
[353011043,1739485916346,-1158.07,0.0001452,2]
[353011044,1739485916355,-500.0,0.0001452,2]
[353011045,1739485916365,-500.0,0.0001452,2]
[353011046,1739485916374,-991.47,0.0001452,2]
[353011047,1739485916383,-1684.45,0.0001452,2]
[353011048,1739485916393,-526.8,0.0001452,2]
[353011049,1739485916402,-660.93,0.0001452,2]
[353011050,1739485916412,-1302.35,0.0001452,2]
[353011051,1739485916421,-854.62,0.0001452,2]
[353011052,1739485916430,-2012.26,0.0001452,2]
[353011053,1739485916439,-504.56,0.0001452,2]
[353011054,1739485916448,-763.9,0.0001452,2]
[353011055,1739485916457,-696.46,0.0001452,2]
[353011056,1739485916467,-835.17,0.0001452,2]
[353011057,1739485916476,-692.97,0.0001452,2]
[353011058,1739485916486,-566.32,0.0001452,2]
[353011059,1739485916495,-857.95,0.0001452,2]
[353011060,1739485916504,-2021.1,0.0001452,2]
[353011061,1739485916514,-702.16,0.0001452,2]
[353011062,1739485916523,-683.82,0.0001452,2]
[353011063,1739485916532,-1015.7,0.0001452,2]
[353011064,1739485916541,-713.38,0.0001452,2]
[353011065,1739485916550,-319.25921049,0.0001452,2]
[353011066,1739485916560,-500.0,0.0001452,2]
[353011067,1739485916569,-1424.92,0.0001452,2]
[353011068,1739485916579,-500.0,0.0001452,2]
[353011069,1739485916588,-500.0,0.0001452,2]
[353011070,1739485916597,-500.0,0.0001452,2]
[353011071,1739485916607,-811.86,0.0001452,2]
[353011072,1739485916617,-988.11,0.0001452,2]
[353011073,1739485916626,-1906.79,0.0001452,2]
[353011074,1739485916636,-1427.42,0.0001452,2]
[353011075,1739485916646,-524.63,0.0001452,2]
[353011076,1739485916655,-500.0,0.0001452,2]
[353011077,1739485916665,-881.54,0.0001452,2]
[353011078,1739485916674,-865.9,0.0001452,2]
[353011079,1739485916683,-1372.61,0.0001452,2]
[353011080,1739485916693,-758.33,0.0001452,2]
[353011081,1739485916703,-1840.97,0.0001452,2]
[353011082,1739485916712,-1636.34,0.0001452,2]
[353011083,1739485916722,-1782.82,0.0001452,2]
[353011084,1739485916731,-1035.24,0.0001452,2]
[353011085,1739485916741,-557.25,0.0001452,2]
[353011086,1739485916751,-687.87,0.0001452,2]
[353011087,1739485916760,-888.74,0.0001452,2]
[353011088,1739485916771,-500.0,0.0001452,2]
[353011089,1739485916780,-1131.23,0.0001452,2]
[353011090,1739485916789,-976.11,0.0001452,2]
[353011091,1739485916798,-548.09,0.0001452,2]
[353011092,1739485916808,-1065.2,0.0001452,2]
[353011093,1739485916818,-500.0,0.0001452,2]
[353011094,1739485916828,-1519.15,0.0001452,2]
[353011095,1739485916839,-825.94,0.0001452,2]
[353011096,1739485916849,-717.12,0.0001452,2]
[353011097,1739485916859,-718.5,0.0001452,2]
[353011098,1739485916869,-500.0,0.0001452,2]
[353011099,1739485916880,-1464.62,0.0001452,2]
[353011100,1739485916890,-2265.71,0.0001452,3]
[353011101,1739485916899,-1779.83,0.0001452,2]
[353011102,1739485916909,-551.0,0.0001452,2]
[353011103,1739485916919,-1813.74,0.0001452,2]
[353011104,1739485916929,-558.37,0.0001452,2]
[353011105,1739485916938,-807.26,0.0001452,2]
[353011106,1739485916948,-1306.72,0.0001452,2]
[353011107,1739485916957,-1123.76,0.0001452,2]
[353011108,1739485916967,-500.0,0.0001452,2]
[353011109,1739485916976,-500.0,0.0001452,2]
[353011110,1739485916985,-844.9,0.0001452,2]
[353011111,1739485916995,-156.890312,0.0001452,2]
[353011112,1739485917006,-2257.68,0.0001452,2]
[353011113,1739485917015,-831.33,0.0001452,2]
[353011114,1739485917030,-923.9,0.0001452,2]
[353011115,1739485917040,-500.0,0.0001452,2]
[353011116,1739485917050,-840.31,0.0001452,2]
[353011117,1739485917061,-897.69,0.0001452,2]
[353011118,1739485917071,-1270.71,0.0001452,2]
[353011119,1739485917081,-853.17,0.0001452,2]
[353011120,1739485917091,-314.28167053,0.0001452,2]
[353011121,1739485917100,-1705.94,0.0001452,2]
[353011122,1739485917110,-500.0,0.0001452,2]
[353011123,1739485917119,-876.71,0.0001452,2]
[353011124,1739485917130,-885.91,0.0001452,2]
[353011125,1739485917139,-500.0,0.0001452,2]
[353011126,1739485917148,-2161.09,0.0001452,2]
[353011127,1739485917161,-500.0,0.0001452,2]
[353011128,1739485917171,-605.73,0.0001452,2]
[353011129,1739485917181,-3040.0,0.0001452,2]
[353011130,1739485917190,-1238.79,0.0001452,2]
[353011131,1739485917200,-1105.8,0.0001452,2]
[353011132,1739485917209,-2265.19,0.0001452,2]
[353011133,1739485917219,-1322.86,0.0001452,2]
[353011134,1739485917228,-500.0,0.0001452,2]
[353011135,1739485917239,-646.18,0.0001452,2]
[353011136,1739485917248,-906.34,0.0001452,2]
[353011137,1739485917257,-523.6,0.0001452,2]
[353011138,1739485917266,-893.53,0.0001452,2]
[353011139,1739485917276,-970.55,0.0001452,2]
[353011140,1739485917286,-702.31,0.0001452,2]
[353011141,1739485917295,-553.1,0.0001452,2]
[353011142,1739485917304,-2482.92,0.0001452,2]
[353011143,1739485917314,-500.0,0.0001452,2]
[353011144,1739485917327,-858.18,0.0001452,2]
[353011145,1739485917337,-669.76,0.0001452,2]
[353011146,1739485917346,-710.97,0.0001452,2]
[353011147,1739485917356,-1892.5,0.0001452,2]
[353011148,1739485917365,-739.26,0.0001452,2]
[353011149,1739485917376,-1559.26,0.0001452,2]
[353011150,1739485917385,-602.38,0.0001452,2]
[353011151,1739485917395,-1326.07,0.0001452,2]
[353011152,1739485917405,-835.99,0.0001452,2]
[353011153,1739485917415,-1789.82,0.0001452,2]
[353011154,1739485917425,-500.0,0.0001452,2]
[353011155,1739485917435,-1318.31,0.0001452,2]
[353011156,1739485917445,-551.86,0.0001452,2]
[353011157,1739485917455,-864.67,0.0001452,2]
[353011158,1739485917464,-500.0,0.0001452,2]
[353011159,1739485917474,-1141.82,0.0001452,2]
[353011160,1739485917483,-1994.16,0.0001452,2]
[353011161,1739485917493,-812.11,0.0001452,2]
[353011162,1739485917503,-500.0,0.0001452,2]
[353011163,1739485917512,-1079.19,0.0001452,2]
[353011164,1739485917522,-859.06,0.0001452,2]
[353011165,1739485917532,-1941.15,0.0001452,2]
[353011166,1739485917542,-2409.32,0.0001452,2]
[353011167,1739485917551,-592.63,0.0001452,2]
[353011168,1739485917560,-900.38,0.0001452,2]
[353011169,1739485917570,-1010.42,0.0001452,2]
[353011170,1739485917579,-1741.64,0.0001452,2]
[353011171,1739485917589,-156.890312,0.0001452,2]
[353011172,1739485917599,-730.65,0.0001452,2]
[353011173,1739485917608,-1201.88,0.0001452,2]
[353011174,1739485917618,-2964.55,0.0001452,2]
[353011175,1739485917628,-645.62,0.0001452,2]
[353011176,1739485917638,-1693.27,0.0001452,2]
[353011177,1739485917647,-765.27,0.0001452,2]
[353011178,1739485917659,-1023.18,0.0001452,2]
[353011179,1739485917669,-1983.35,0.0001452,2]
[353011180,1739485917678,-1199.21,0.0001452,2]
[353011181,1739485917688,-1991.14,0.0001452,2]
[353011182,1739485917698,-533.09,0.0001452,2]
[353011183,1739485917707,-4281.75,0.0001452,2]
[353011184,1739485917717,-500.0,0.0001452,2]
[353011185,1739485917727,-2700.69,0.0001452,2]
[353011186,1739485917741,-1072.56,0.0001452,2]
[353011187,1739485917751,-2181.51,0.0001452,2]
[353011188,1739485917761,-2105.12,0.0001452,2]
[353011189,1739485917771,-2362.29,0.0001452,2]
[353011190,1739485917781,-797.65,0.0001452,2]
[353011191,1739485917791,-1372.43,0.0001452,2]
[353011192,1739485917801,-500.0,0.0001452,2]
[353011193,1739485917811,-2270.27,0.0001452,2]
[353011194,1739485917821,-500.0,0.0001452,2]
[353011195,1739485917831,-701.26,0.0001452,2]
[353011196,1739485917840,-1635.6,0.0001452,2]
[353011197,1739485917851,-1210.46,0.0001452,2]
[353011198,1739485917860,-1551.99,0.0001452,2]
[353011199,1739485917870,-2766.93,0.0001452,2]
[353011200,1739485917880,-4033.58,0.0001452,2]
[353011201,1739485917889,-2765.04,0.0001452,2]
[353011202,1739485917899,-660.75,0.0001452,2]
[353011203,1739485917910,-2103.7,0.0001452,2]
[353011204,1739485917920,-924.48,0.0001452,2]
[353011205,1739485917929,-794.33,0.0001452,2]
[353011206,1739485917939,-1140.21,0.0001452,2]
[353011207,1739485917949,-1374.92,0.0001452,2]
[353011208,1739485917958,-500.0,0.0001452,2]
[353011209,1739485917968,-1394.91,0.0001452,2]
[353011210,1739485917978,-2230.12,0.0001452,2]
[353011211,1739485917987,-500.0,0.0001452,2]
[353011212,1739485917997,-878.31,0.0001452,2]
[353011213,1739485918007,-1071.07,0.0001452,2]
[353011214,1739485918017,-3342.84,0.0001452,2]
[353011215,1739485918029,-683.58,0.0001452,2]
[353011216,1739485918039,-1308.38,0.0001452,2]
[353011217,1739485918048,-3531.08,0.0001452,2]
[353011218,1739485918059,-1653.81,0.0001452,2]
[353011219,1739485918071,-553.67,0.0001452,2]
[353011220,1739485918080,-988.77,0.0001452,2]
[353011221,1739485918090,-500.0,0.0001452,2]
[353011222,1739485918101,-2226.29,0.0001452,2]
[353011223,1739485918111,-969.77,0.0001452,2]
[353011224,1739485918121,-1807.21,0.0001452,2]
[353011225,1739485918130,-1796.12,0.0001452,2]
[353011226,1739485918140,-500.0,0.0001452,2]
[353011227,1739485918150,-3314.33,0.0001452,2]
[353011228,1739485918160,-3189.0,0.0001452,2]
[353011229,1739485918169,-803.11,0.0001452,2]
[353011230,1739485918179,-607.85,0.0001452,2]
[353011231,1739485918188,-761.91,0.0001452,2]
[353011232,1739485918199,-621.21,0.0001452,2]
[353011233,1739485918209,-1972.85,0.0001452,2]
[353011234,1739485918218,-523.93,0.0001452,2]
[353011235,1739485918228,-3990.94,0.0001452,2]
[353011236,1739485918238,-719.42,0.0001452,2]
[353011237,1739485918248,-749.77,0.0001452,2]
[353011238,1739485918257,-500.0,0.0001452,2]
[353011239,1739485918267,-1753.67,0.0001452,2]
[353011240,1739485918277,-2497.17,0.0001452,2]
[353011241,1739485918287,-500.0,0.0001452,2]
[353011242,1739485918296,-1325.27,0.0001452,2]
[353011243,1739485918306,-3120.71,0.0001452,2]
[353011244,1739485918316,-511.69,0.0001452,2]
[353011245,1739485918326,-3912.39,0.0001452,2]
[353011246,1739485918335,-1203.12,0.0001452,2]
[353011247,1739485918344,-500.0,0.0001452,2]
[353011248,1739485918353,-635.38,0.0001452,2]
[353011249,1739485918363,-1628.89,0.0001452,2]
[353011250,1739485918373,-1174.26,0.0001452,2]
[353011251,1739485918383,-5014.48,0.0001452,2]
[353011252,1739485918392,-500.0,0.0001452,2]
[353011253,1739485918402,-591.53,0.0001452,2]
[353011254,1739485918581,-2834.89,0.0001452,2]
[353011255,1739485918591,-1129.98,0.0001452,2]
[353011256,1739485918601,-4012.08,0.0001452,2]
[353011257,1739485918611,-1877.06,0.0001452,2]
[353011258,1739485918620,-2305.18,0.0001452,2]
[353011259,1739485918630,-3400.07,0.0001452,2]
[353011260,1739485918640,-10601.94,0.0001452,2]
[353011261,1739485918650,-1278.06,0.0001452,2]
[353011262,1739485918659,-2677.19,0.0001452,2]
[353011263,1739485918668,-2091.53,0.0001452,2]
[353011264,1739485918678,-255.07587058,0.0001452,2]
[353011265,1739485918690,-1914.19,0.0001452,2]
[353011266,1739485918699,-6319.86,0.0001452,2]
[353011267,1739485918708,-2222.28,0.0001452,2]
[353011268,1739485918718,-1244.36,0.0001452,2]
[353011269,1739485918729,-2434.73,0.0001452,2]
[353011270,1739485918739,-1301.75,0.0001452,2]
[353011271,1739485918749,-3378.69,0.0001452,2]
[353011272,1739485918759,-1073.98,0.0001452,2]
[353011273,1739485918768,-500.0,0.0001452,2]
[353011274,1739485918778,-500.0,0.0001452,2]
[353011275,1739485918787,-1003.25,0.0001452,2]
[353011276,1739485918797,-3213.97,0.0001452,2]
[353011277,1739485918806,-1894.84,0.0001452,2]
[353011278,1739485918816,-1618.51,0.0001452,2]
[353011279,1739485918826,-3027.83,0.0001452,2]
[353011280,1739485918835,-1463.57,0.0001452,2]
[353011281,1739485918845,-551.57,0.0001452,2]
[353011282,1739485918855,-1866.04,0.0001452,2]
[353011283,1739485918865,-3405.09,0.0001452,2]
[353011284,1739485918876,-3794.0,0.0001452,2]
[353011285,1739485918886,-3558.25,0.0001452,2]
[353011286,1739485918895,-1199.38,0.0001452,2]
[353011287,1739485918906,-5141.78,0.0001452,2]
[353011288,1739485918915,-5036.58,0.0001452,2]
[353011289,1739485918926,-972.02,0.0001452,2]
[353011290,1739485918935,-1457.37,0.0001452,2]
[353011291,1739485918946,-4943.34,0.0001452,2]
[353011292,1739485918955,-1646.26,0.0001452,2]
[353011293,1739485918965,-1023.76,0.0001452,2]
[353011294,1739485918974,-973.76,0.0001452,2]
[353011295,1739485918984,-1078.92,0.0001452,2]
[353011296,1739485918994,-3488.7,0.0001452,2]
[353011297,1739485919004,-9947.08,0.0001452,2]
[353011298,1739485919014,-1167.35,0.0001452,2]
[353011299,1739485919025,-1925.44,0.0001452,2]
[353011300,1739485919038,-3871.01,0.0001452,2]
[353011301,1739485919048,-3374.31,0.0001452,2]
[353011302,1739485919058,-3262.34,0.0001452,2]
[353011303,1739485919070,-3751.7,0.0001452,2]
[353011304,1739485919079,-2216.47,0.0001452,2]
[353011305,1739485919089,-500.0,0.0001452,2]
[353011306,1739485919100,-500.0,0.0001452,2]
[353011307,1739485919111,-1272.94,0.0001452,2]
[353011308,1739485919122,-2198.57,0.0001452,2]
[353011309,1739485919131,-3047.23,0.0001452,2]
[353011310,1739485919141,-4282.13,0.0001452,2]
[353011311,1739485919150,-1579.29,0.0001452,2]
[353011312,1739485919161,-2262.09,0.0001452,2]
[353011313,1739485919171,-2034.1,0.0001452,2]
[353011314,1739485919182,-4796.16,0.0001452,2]
[353011315,1739485919192,-621.58,0.0001452,2]
[353011316,1739485919202,-4188.27,0.0001452,2]
[353011317,1739485919212,-2900.35,0.0001452,2]
[353011318,1739485919222,-5302.96,0.0001452,2]
[353011319,1739485919232,-3352.12,0.0001452,2]
[353011320,1739485919243,-525.01,0.0001452,2]
[353011321,1739485919253,-2517.29,0.0001452,2]
[353011322,1739485919264,-3510.5,0.0001452,2]
[353011323,1739485919274,-1911.76,0.0001452,2]
[353011324,1739485919284,-3186.25,0.0001452,2]
[353011325,1739485919296,-1411.53,0.0001452,2]
[353011326,1739485919306,-5245.34,0.0001452,2]
[353011327,1739485919316,-500.0,0.0001452,2]
[353011328,1739485919327,-4040.71,0.0001452,2]
[353011329,1739485919337,-2434.4,0.0001452,2]
[353011330,1739485919347,-797.43,0.0001452,2]
[353011331,1739485919359,-3997.95,0.0001452,2]
[353011332,1739485919369,-430.80430711,0.0001452,2]
[353011333,1739485919379,-3613.39,0.0001452,2]
[353011334,1739485919391,-3418.06,0.0001452,2]
[353011335,1739485919401,-566.64,0.0001452,2]
[353011336,1739485919411,-347.97049213,0.0001452,2]
[353011337,1739485919421,-8838.73,0.0001452,2]
[353011338,1739485919431,-624.99,0.0001452,2]
[353011339,1739485919443,-720.74,0.0001452,2]
[353011340,1739485919454,-3533.94,0.0001452,2]
[353011341,1739485919465,-3776.32,0.0001452,2]
[353011342,1739485919475,-522.13,0.0001452,2]
[353011343,1739485919486,-2767.11,0.0001452,2]
[353011344,1739485919497,-4171.69,0.0001452,2]
[353011345,1739485919507,-500.0,0.0001452,2]
[353011346,1739485919519,-1300.63,0.0001452,2]
[353011347,1739485919531,-3523.18,0.0001452,2]
[353011348,1739485919541,-4629.45,0.0001452,2]
[353011349,1739485919551,-2317.93,0.0001452,2]
[353011350,1739485919563,-542.74,0.0001452,2]
[353011351,1739485919573,-6501.79,0.0001452,2]
[353011352,1739485919583,-649.96,0.0001452,2]
[353011353,1739485919594,-2852.77,0.0001452,2]
[353011354,1739485919604,-4468.57,0.0001452,2]
[353011355,1739485919613,-773.78,0.0001452,2]
[353011356,1739485919623,-724.47,0.0001452,2]
[353011357,1739485919633,-2513.38,0.0001452,2]
[353011358,1739485919645,-4071.43,0.0001452,2]
[353011359,1739485919656,-3680.29,0.0001452,2]
[353011360,1739485919666,-3113.41,0.0001452,2]
[353011361,1739485919676,-964.12,0.0001452,2]
[353011362,1739485919687,-500.0,0.0001452,2]
[353011363,1739485919696,-1523.71,0.0001452,2]
[353011364,1739485919716,-525.45,0.0001452,2]
[353011365,1739485919733,-741.53,0.0001452,2]
[353011366,1739485919754,-2768.98,0.0001452,2]
[353011367,1739485919772,-1470.77,0.0001452,2]
[353011368,1739485919790,-3441.38,0.0001452,2]
[353011369,1739485919808,-4132.51,0.0001452,2]
[353011370,1739485919827,-1712.88,0.0001452,2]
[353011371,1739485919846,-4938.55,0.0001452,2]
[353011372,1739485919864,-2124.68,0.0001452,2]
[353011373,1739485919882,-1226.02,0.0001452,2]
[353011374,1739485919899,-1789.26,0.0001452,2]
[353011375,1739485919914,-1451.96,0.0001452,2]
[353011376,1739485919931,-824.05,0.0001452,2]
[353011377,1739485919946,-3558.23,0.0001452,2]
[353011378,1739485919963,-4167.53,0.0001452,2]
[353011379,1739485919978,-880.79,0.0001452,2]
[353011380,1739485919994,-1936.97,0.0001452,2]
[353011381,1739485920009,-1838.56,0.0001452,2]
[353011382,1739485920028,-2962.2,0.0001452,2]
[353011383,1739485920041,-598.78,0.0001452,2]
[353011384,1739485920059,-709.99,0.0001452,2]
[353011385,1739485920076,-202.0,0.0001454,2]
[353011386,1739485920093,-299.0,0.0001459,2]
[353011387,1739485920112,-3420.98,0.00014592,2]
[353011388,1739485920127,-1124.476697,0.00014602,2]
[353011389,1739485920142,-1030.770305,0.00014602,2]
[353011390,1739485920157,-1369.077968,0.00014602,2]
[353011391,1739485920173,-500.0,0.00014602,2]
[353011392,1739485920188,-500.0,0.00014602,2]
[353011393,1739485920204,-781.27,0.00014602,2]
[353011394,1739485920219,-640.12,0.00014602,2]
[353011395,1739485920235,-571.73,0.00014602,2]
[353011396,1739485920251,-767.83,0.00014602,2]
[353011397,1739485920268,-517.58,0.00014602,2]
[353011398,1739485920284,-748.33,0.00014602,2]
[353011399,1739485920299,-523.85032368,0.00014602,2]
[353011400,1739485920315,-1019.36,0.00014602,2]
[353011401,1739485920331,-500.0,0.00014602,2]
[353011402,1739485920346,-536.11,0.00014602,2]
[353011403,1739485920362,-853.88,0.00014602,2]
[353011404,1739485920377,-500.0,0.00014602,2]
[353011405,1739485920392,-522.5,0.00014602,2]
[353011406,1739485920408,-1237.75,0.00014602,2]
[353011407,1739485920423,-500.0,0.00014602,2]
[353011408,1739485920438,-823.6,0.00014602,2]
[353011409,1739485920454,-500.0,0.00014602,2]
[353011410,1739485920470,-583.03,0.00014602,2]
[353011411,1739485920485,-588.86,0.00014602,2]
[353011412,1739485920500,-535.5059612,0.00014602,2]
[353011413,1739485920516,-839.01,0.00014602,2]
[353011414,1739485920532,-632.18,0.00014602,2]
[353011415,1739485920547,-500.0,0.00014602,2]
[353011416,1739485920563,-1100.34,0.00014602,2]
[353011417,1739485920577,-500.0,0.00014602,2]
[353011418,1739485920591,-907.89,0.00014602,2]
[353011419,1739485920606,-500.0,0.00014602,2]
[353011420,1739485920621,-791.76,0.00014602,2]
[353011421,1739485920636,-500.0,0.00014602,2]
[353011422,1739485920651,-1002.52,0.00014602,2]
[353011423,1739485920666,-500.0,0.00014602,2]
[353011424,1739485920680,-673.2,0.00014602,2]
[353011425,1739485920696,-864.99,0.00014602,2]
[353011426,1739485920712,-556.42,0.00014602,2]
[353011427,1739485920727,-606.37,0.00014602,2]
[353011428,1739485920743,-500.0,0.00014602,2]
[353011429,1739485920757,-500.0,0.00014602,2]
[353011430,1739485920772,-500.0,0.00014602,2]
[353011431,1739485920787,-542.4,0.00014602,2]
[353011432,1739485920802,-500.0,0.00014602,2]
[353011433,1739485920817,-606.89,0.00014602,2]
[353011434,1739485920832,-551.03,0.00014602,2]
[353011435,1739485920848,-500.0,0.00014602,2]
[353011436,1739485920862,-571.58,0.00014602,2]
[353011437,1739485920876,-507.69,0.00014602,2]
[353011438,1739485920891,-500.0,0.00014602,2]
[353011439,1739485920906,-500.0,0.00014602,2]
[353011440,1739485920920,-500.0,0.00014602,2]
[353011441,1739485920935,-500.0,0.00014602,2]
[353011442,1739485920949,-500.0,0.00014602,2]
[353011443,1739485920964,-500.0,0.00014602,2]
[353011444,1739485920979,-500.0,0.00014602,2]
[353011445,1739485920994,-500.0,0.00014602,2]
[353011446,1739485921010,-2208.67,0.00014602,2]
[353011447,1739485921027,-543.67,0.00014602,2]
[353011448,1739485921044,-823.62,0.00014602,2]
[353011449,1739485921060,-653.16,0.00014602,2]
[353011450,1739485921077,-638.54,0.00014602,2]
[353011451,1739485921093,-1041.6,0.00014602,2]
[353011452,1739485921108,-500.0,0.00014602,2]
[353011453,1739485921123,-2539.19,0.00014602,2]
[353011454,1739485921138,-500.0,0.00014602,2]
[353011455,1739485921153,-3052.42,0.00014602,2]
[353011456,1739485921167,-514.61,0.00014602,2]
[353011457,1739485921187,-867.43,0.00014602,2]
[353011458,1739485921201,-1525.33,0.00014602,2]
[353011459,1739485921217,-500.0,0.00014602,2]
[353011460,1739485921233,-1400.14,0.00014602,2]
[353011461,1739485921248,-917.77,0.00014602,2]
[353011462,1739485921262,-1241.27,0.00014602,2]
[353011463,1739485921276,-991.55,0.00014602,2]
[353011464,1739485921291,-566.52,0.00014602,2]
[353011465,1739485921306,-500.0,0.00014602,2]
[353011466,1739485921322,-500.0,0.00014602,2]
[353011467,1739485921337,-500.0,0.00014602,2]
[353011468,1739485921352,-500.0,0.00014602,2]
[353011469,1739485921367,-633.2,0.00014602,2]
[353011470,1739485921382,-717.52,0.00014602,2]
[353011471,1739485921397,-689.5,0.00014602,2]
[353011472,1739485921413,-965.58,0.00014602,2]
[353011473,1739485921427,-500.0,0.00014602,2]
[353011474,1739485921442,-756.27,0.00014602,2]
[353011475,1739485921457,-687.68,0.00014602,2]
[353011476,1739485921472,-1501.09,0.00014602,2]
[353011477,1739485921699,-1669.58,0.00014602,2]
[353011478,1739485921712,-825.83,0.00014602,2]
[353011479,1739485921721,-1337.74,0.00014602,2]
[353011480,1739485921731,-500.0,0.00014602,2]
[353011481,1739485921741,-1371.86,0.00014602,2]
[353011482,1739485921751,-500.0,0.00014602,2]
[353011483,1739485921760,-1702.26,0.00014602,2]
[353011484,1739485921770,-500.0,0.00014602,2]
[353011485,1739485921779,-1754.49,0.00014602,2]
[353011486,1739485921789,-1078.61,0.00014602,2]
[353011487,1739485921799,-869.45,0.00014602,2]
[353011488,1739485921809,-1158.07,0.00014602,2]
[353011489,1739485921818,-201.03268405,0.00014602,2]
[353011490,1739485921827,-500.0,0.00014602,2]
[353011491,1739485921836,-991.47,0.00014602,2]
[353011492,1739485921846,-1684.45,0.00014602,2]
[353011493,1739485921855,-526.8,0.00014602,2]
[353011494,1739485921865,-660.93,0.00014602,2]
[353011495,1739485921876,-1302.35,0.00014602,2]
[353011496,1739485921885,-854.62,0.00014602,2]
[353011497,1739485921895,-2012.26,0.00014602,2]
[353011498,1739485921906,-504.56,0.00014602,2]
[353011499,1739485921915,-763.9,0.00014602,2]
[353011500,1739485921925,-696.46,0.00014602,2]
[353011501,1739485921935,-835.17,0.00014602,2]
[353011502,1739485921944,-692.97,0.00014602,2]
[353011503,1739485921953,-566.32,0.00014602,2]
[353011504,1739485921963,-857.95,0.00014602,2]
[353011505,1739485921972,-2021.1,0.00014602,2]
[353011506,1739485921981,-702.16,0.00014602,2]
[353011507,1739485921990,-683.82,0.00014602,2]
[353011508,1739485921999,-1015.7,0.00014602,2]
[353011509,1739485922009,-713.38,0.00014602,2]
[353011510,1739485922019,-500.0,0.00014602,2]
[353011511,1739485922031,-1424.92,0.00014602,2]
[353011512,1739485922041,-197.51060248,0.00014602,2]
[353011513,1739485922050,-500.0,0.00014602,2]
[353011514,1739485922059,-500.0,0.00014602,2]
[353011515,1739485922071,-811.86,0.00014602,2]
[353011516,1739485922080,-988.11,0.00014602,2]
[353011517,1739485922090,-1906.79,0.00014602,2]
[353011518,1739485922100,-1427.42,0.00014602,2]
[353011519,1739485922111,-524.63,0.00014602,2]
[353011520,1739485922122,-500.0,0.00014602,2]
[353011521,1739485922131,-881.54,0.00014602,2]
[353011522,1739485922140,-865.9,0.00014602,2]
[353011523,1739485922150,-1372.61,0.00014602,2]
[353011524,1739485922160,-758.33,0.00014602,2]
[353011525,1739485922169,-1840.97,0.00014602,2]
[353011526,1739485922179,-1636.34,0.00014602,2]
[353011527,1739485922189,-1782.82,0.00014602,2]
[353011528,1739485922199,-1035.24,0.00014602,2]
[353011529,1739485922208,-557.25,0.00014602,2]
[353011530,1739485922218,-687.87,0.00014602,2]
[353011531,1739485922227,-888.74,0.00014602,2]
[353011532,1739485922237,-500.0,0.00014602,2]
[353011533,1739485922246,-1131.23,0.00014602,2]
[353011534,1739485922256,-976.11,0.00014602,2]
[353011535,1739485922265,-548.09,0.00014602,2]
[353011536,1739485922275,-1065.2,0.00014602,2]
[353011537,1739485922284,-500.0,0.00014602,2]
[353011538,1739485922293,-1519.15,0.00014602,2]
[353011539,1739485922303,-825.94,0.00014602,2]
[353011540,1739485922312,-717.12,0.00014602,2]